Cogmind - Beta 16 --- EXPLORER MODE // 2025.11.12 @ 15:46:35 Player: K.K.Y. Result: Destroyed by 21-BIJ(R) with Subdweller Laser Performance ------------- Evolutions (0) 0 Regions Visited (2) 400 Robots Destroyed (30) 150 Value Destroyed (625) 625 Prototype IDs (12) 240 Alien Tech Used (0) 0 Bonus (0) 0 TOTAL SCORE: 1415 Bonus ------- None Cogmind --------- Core Integrity 0/250 Matter 215/300 Energy 99/100 System Corruption 0% Temperature Cool (6) Movement Rolling (150) Ox4 Location -10/Subcaves Parts ------- > --- POWER (1) -------- (None) > --- PROPULSION (3) --- Spiked Treads Subdweller Monowheel Subdweller Monowheel > --- UTILITY (2) ------ Huge Storage Unit > --- WEAPON (2) ------- Subdweller Beam Cannon Battle Rifle > --- INVENTORY (25) --- Structural Scanner Transport Network Coupler Scrap Shield Riot Gun Subdweller Laser Subdweller Shrapnel Launcher Multitool SUBCON Basin (Full) Peak State ------------ > --- POWER ------------ Ion Engine > --- PROPULSION ------- Aluminum Leg Makeshift Leg Makeshift Leg > --- UTILITY ---------- Huge Storage Unit > --- WEAPON ----------- Barrage Gun Mining Laser > --- INVENTORY -------- Structural Scanner Seismic Detector Transport Network Coupler Scrap Shield Subdweller Laser Subdweller Beam Cannon Subdweller Machine Gun Subdweller Shrapnel Launcher Multitool SUBCON Basin [Rating: 34] Favorites ----------- Power Ion Engine Engine Ion Engine Propulsion Aluminum Leg Treads Spiked Treads Leg Aluminum Leg Wheel Wheel Utility Huge Storage Unit Storage Huge Storage Unit Weapon Assault Rifle Energy Gun Riot Gun Energy Cannon Powered Cannon Ballistic Gun Assault Rifle Special Weapon Mining Laser Build | -11 -10 -10 ------- Run | Yrd Mat Sub Slots Evolved 1 | . 1 . Power . | . . . Propulsion 1 | . 1 . Utility . | . . . Weapon . | . . . Parts Attached 22 | 4 3 15 Power 2 | 1 . 1 Engine 2 | 1 . 1 Core . | . . . Reactor . | . . . Propulsion 10 | 2 1 7 Treads 1 | . . 1 Leg 5 | 2 1 2 Wheel 4 | . . 4 Hover . | . . . Flight . | . . . Utility 2 | 1 . 1 Device . | . . . Storage 2 | 1 . 1 Processor . | . . . Hackware . | . . . Protection . | . . . Artifact . | . . . Weapon 8 | . 2 6 Energy Gun 1 | . . 1 Energy Cannon 2 | . . 2 Ballistic Gun 4 | . 1 3 Ballistic Cannon . | . . . Launcher . | . . . Special Weapon 1 | . 1 . Impact Weapon . | . . . Slashing Weapon . | . . . Piercing Weapon . | . . . Special Melee Weapon . | . . . Unidentified Prototypes . | . . . Parts Lost 8 | . . 8 Power 1 | . . 1 Propulsion 4 | . . 4 Utility . | . . . Weapon 3 | . . 3 Highest Loss Streak 2 | . . 2 To Critical Strikes . | . . . Average Backups 8 | 1 5 10 Power . | . . . Propulsion . | . 1 . Utility 3 | . 2 4 Weapon 3 | . . 4 Tool/Special . | . . . Unused Backups 20 | 1 . 19 Power 2 | 1 . 1 Propulsion . | . . . Utility 6 | . . 6 Weapon 10 | . . 10 Tool/Special 2 | . . 2 Average Slot Usage (%) 64 | . 49 75 Engine 8 | . 1 12 Treads 1 | . . 2 Leg 22 | . 22 22 Wheel 4 | . . 6 Storage 11 | . 12 11 Energy Cannon 1 | . . 3 Ballistic Gun 9 | . 11 8 Special Weapon 3 | . . 5 Peak Build Rating 34 | 4 7 34 Average Rating 15 | 2 4 22 On Entrance 2 | . 4 3 Avg Prop Armor Cover (%) 9 | . . 9 Naked Turns . | . . . Heaviest Build 97 | 15 18 97 Greatest Support 50 | 20 30 50 Greatest Overweight (x) 8 | . 3 8 Average Overweight (x) 1 | . . 3 Largest Inventory Capacity 25 | 10 10 25 Average Capacity 17 | 8 10 23 Most Carried 25 | 4 10 25 Average Carried 13 | 1 5 18 Final Capacity 25 | 10 10 25 Final Carried 23 | 1 10 23 Class Distribution -------------------- 100% | Hacker-Mutant Dominant Class ---------------- Hacker-Mutant | -10/Materials Hacker-Mutant | -10/Subcaves Resources | -11 -10 -10 ----------- Run | Yrd Mat Sub Matter Collected 814 | 196 270 348 Remotely . | . . . Salvage Created 920 | . 389 531 Parts 78 | . 39 39 Haulers Intercepted 2 | . 2 . Recyclers Shooed . | . . . Parts Field Recycled . | . . . Retrieved Matter . | . . . Parts Self-Destructed . | . . . Prevented . | . . . Parts Restored . | . . . Kills | -11 -10 -10 ------- Run | Yrd Mat Sub Combat Hostiles Destroyed 20 | . 6 14 Guns 14 | . 6 8 Cannons 6 | . . 6 Classes Destroyed 10 | . 7 3 Worker 1 | . 1 . Builder 4 | . 4 . Tunneler 1 | . 1 . Hauler 2 | . 2 . Watcher 2 | . 2 . Swarmer 8 | . 4 4 Grunt 2 | . 2 . Artisan 2 | . . 2 Cobbler 1 | . . 1 Subdweller 10 | . . 10 Best Kill Streak 4 | . 3 4 Combat Bots Only 4 | . 3 4 Max Kills in Single Turn 1 | . 1 1 Gunslinging . | . . . Exploded . | . . . Melee . | . . . Uniques/NPCs Destroyed . | . . . Combat | -11 -10 -10 -------- Run | Yrd Mat Sub Hostile Shots Fired 126 | . 23 103 Missed 39 | . 7 32 Hits 87 | . 16 71 Projectile 87 | . 16 71 Critical Strikes 1 | . . 1 Damage Taken 1087 | . 90 997 Core 258 | . 36 222 Absorbed by Shields . | . . . Ignored by Resistances 577 | . 64 513 Core Remaining (%) 100 | 100 . . Volleys Fired 139 | . 52 87 Largest 2 | . 2 2 Hottest 128 | . 120 128 Shots Fired 159 | . 55 104 Gun 128 | . 52 76 Cannon 19 | . . 19 Launcher . | . . . Special 12 | . 3 9 Kinetic 123 | . 52 71 Thermal 31 | . 3 28 Explosive . | . . . Electromagnetic 5 | . . 5 Robot Hit Streak 47 | . 34 47 Robot Miss Streak 2 | . 2 1 Penetration Max . | . . . Secondary Targets . | . . . Shots Hit Robots 121 | . 49 72 Core Hits 42 | . 19 23 Critical Kills . | . . . Critical Parts Destroyed . | . . . Critical Strikes 1 | . . 1 Destroy 1 | . . 1 Melee Attacks . | . . . Impact . | . . . Slashing . | . . . Piercing . | . . . Sneak Attacks . | . . . Combat Hostiles . | . . . Follow-up Attacks . | . . . Damage Inflicted 2127 | . 626 1501 Guns 1436 | . 578 858 Cannons 571 | . . 571 Explosions . | . . . Melee . | . . . Ramming . | . . . Kinetic 1416 | . 578 838 Thermal 691 | . 48 643 Explosive . | . . . Electromagnetic 20 | . . 20 Impact . | . . . Slashing . | . . . Piercing . | . . . Highest Corruption . | . . . Average Corruption . | . . . Corruption Purged . | . . . Corruption Blocked . | . . . Overload Shots . | . . . Overflow Damage 75 | . 4 71 Projectiles 75 | . 4 71 Explosions . | . . . Melee . | . . . Knockbacks . | . . . Impact . | . . . Kinetic . | . . . Secondary . | . . . Self-Inflicted Damage . | . . . Shots . | . . . Rammed . | . . . Targets Rammed 1 | . 1 . Kicked 1 | . 1 . Crushed . | . . . Highest Temperature 129 | . 20 129 Average Temperature 19 | . 10 26 Received Heat Transfer 418 | . 6 412 Siege Activations . | . . . Martial Activations . | . . . Shielding Activations . | . . . Robots Disrupted . | . . . Combat Hostiles . | . . . Robots Corrupted . | . . . Combat Hostiles . | . . . Parts Fried . | . . . Impact Corruptions . | . . . Robots Melted . | . . . Combat Hostiles . | . . . Parts Melted . | . . . Heat Transferred 287 | . 100 187 Parts Sabotaged . | . . . Parts Stolen . | . . . Parts Stripped . | . . . Power Chain Reactions . | . . . Alert | -11 -10 -10 ------- Run | Yrd Mat Sub Maximum Alert Level . | . . . Low Security (%) 100 | 100 100 . Level 1 . | . . . Level 2 . | . . . Level 3 . | . . . Level 4 . | . . . Level 5 . | . . . High Security . | . . . Max Security . | . . . Peak Influence 105 | . 105 . Initial . | . . . Average 4 | . 4 . Influence Increases 363 | . 208 155 Destroy 0b10 Robot/C 200 | . 120 80 Destroy 0b10 Robot/NC 50 | . 50 . Destroy Leader 38 | . 38 . Lose Combat Pursuer 75 | . . 75 Influence Decreases 363 | . 208 155 Time Decay 363 | . 208 155 Squads Dispatched . | . . . Investigation . | . . . Extermination . | . . . Reinforcement . | . . . Assault . | . . . Garrison . | . . . Intercept . | . . . Searches Triggered . | . . . Construction Impeded . | . . . Haulers Reinforced . | . . . Active Scanning Responses . | . . . Cargo Convoy Interrupts . | . . . Stealth | -11 -10 -10 --------- Run | Yrd Mat Sub Distress Signals 1 | . 1 . Communications Jammed . | . . . Distress Signals . | . . . Times Spotted 26 | . 10 16 Peak Tracking Total 6 | . 3 6 Tactical Retreats 2 | . . 2 Traps | -11 -10 -10 ------- Run | Yrd Mat Sub Traps Triggered 11 | . 8 3 Indirectly . | . . . Trap Hack Attempts . | . . . Triggered . | . . . Disarmed . | . . . Reprogrammed . | . . . Reused . | . . . Traps Extracted . | . . . Installed . | . . . Triggered . | . . . Machines | -11 -10 -10 ---------- Run | Yrd Mat Sub Machines Disabled 1 | . . 1 Max in Single Turn 1 | . . 1 Machines Repaired . | . . . Machines Dismantled . | . . . Machines Sabotaged . | . . . Overloaded Fab Kills . | . . . Hacking | -11 -10 -10 --------- Run | Yrd Mat Sub Machines Accessed 3 | . . 3 Terminals . | . . . Fabricators . | . . . Repair Stations . | . . . Recycling Units . | . . . Scanalyzers . | . . . Garrison Access . | . . . Total Hacks 4 | . . 4 Successful 4 | . . 4 Failed . | . . . Catastrophic . | . . . Database Lockouts . | . . . Manual . | . . . Terminals . | . . . Fabricators . | . . . Repair Stations . | . . . Recycling Units . | . . . Scanalyzers . | . . . Garrison Access . | . . . Terminal Hacks 4 | . . 4 Record 1 | . . 1 Open Door 1 | . . 1 Proto ID Catalog 1 | . . 1 Release Object 1 | . . 1 Fabricator Hacks . | . . . Repair Station Hacks . | . . . Recycling Unit Hacks . | . . . Scanalyzer . | . . . Garrison Access Hacks . | . . . Unauthorized Hacks . | . . . Terminals . | . . . Fabricators . | . . . Repair Stations . | . . . Recycling Units . | . . . Scanalyzers . | . . . Garrison Access . | . . . Data Cores Recovered . | . . . Used . | . . . Hacking Detections . | . . . Full Trace Events . | . . . Feedback Events . | . . . Feedback Blocked . | . . . Robot Schematics Acquired . | . . . Robots Built . | . . . Authchips . | . . . Time . | . . . Total Robot Build Rating . | . . . Part Schematics Acquired . | . . . Parts Built . | . . . Authchips . | . . . Time . | . . . Total Part Build Rating . | . . . Part Studies Acquired . | . . . Parts Repaired . | . . . Time . | . . . Parts Recycled . | . . . Recycled Matter . | . . . Retrieved Matter . | . . . Retrieved Components . | . . . Parts Scanalyzed . | . . . Part Schematics Acquired . | . . . Parts Damaged . | . . . Bothacking | -11 -10 -10 ------------ Run | Yrd Mat Sub Used RIF Installer . | . . . Robots Hacked . | . . . Non-combat . | . . . Combat . | . . . Robot Hacks Applied . | . . . Relay Couplers Released . | . . . Fabnet Peak Effective % . | . . . Robots Rewired . | . . . Allies Hacked . | . . . Hacks Repelled . | . . . Allies | -11 -10 -10 -------- Run | Yrd Mat Sub Total Allies . | . . . Largest Group . | . . . Highest-Rated Group . | . . . Highest-Rated Ally . | . . . Total Orders . | . . . Ally Attacks . | . . . Total Damage . | . . . Kills . | . . . Allies Corrupted . | . . . Allies Melted . | . . . Intel | -11 -10 -10 ------- Run | Yrd Mat Sub Active Infowar (turns) . | . . . Robot Analysis Total . | . . . Derelict Logs Recovered 1 | . . 1 Drone Launches . | . . . Drone Recoveries . | . . . Exploration | -11 -10 -10 ------------- Run | Yrd Mat Sub Turns Passed 4732 | 57 1864 2811 Spaces Moved 1793 | 52 778 963 Core 185 | 21 164 . Treads 70 | . . 70 Legs 1189 | 31 614 544 Wheels 349 | . . 349 Hover . | . . . Flight . | . . . Fastest Speed 50 | 50 120 119 Average Speed 190 | 91 136 238 Slowest Speed 560 | 120 200 560 Overloaded Moves . | . . . Propulsion Burnouts . | . . . Robots Hopped . | . . . Potential Cave-ins . | . . . Cave-ins Triggered . | . . . Exploration Rate (%) 51 | 4 100 51 Regions Visited 2 Branch Regions 1 Pre-discovered Areas 1 | . . 1 Known Exits Taken 2 | 1 1 . Unknown Exits Taken . | . . . Scrap Searched 11 | . . 11 Spaces Dug . | . . . Terrain Destroyed 2 | . . 2 Melee . | . . . Projectile 2 | . . 2 AOE . | . . . Terrain Rammed . | . . . Walls Destroyed . | . . . Machines Disabled . | . . . Actions | -11 -10 -10 --------- Run | Yrd Mat Sub Total 2941 | 62 1515 1364 Wait 909 | . 666 243 Move 1791 | 51 777 963 Hop . | . . . Pick Up 43 | 6 12 25 Fast Attach 11 | . 4 7 Attach 19 | 4 3 12 Detach 3 | . . 3 Swap 3 | . . 3 Drop 22 | 1 . 21 Fire 139 | . 52 87 Melee . | . . . Ram . | . . . Kick 1 | . 1 . Crush . | . . . Escape Stasis . | . . . Rewire . | . . . Trap . | . . . Miscellaneous . | . . . Route ------- -11/Scrapyard -10/Materials (discovered 5 exits: *Mat x3 / *Min / *Sub) -10/Subcaves (discovered 2 exits: *Mat x2) History --------- Turn | Location | Event 11 | -11/Scrapyard | Identified exit to Materials 11 | -11/Scrapyard | Discovered exit to Materials (range 15) 58 | -11/Scrapyard | Entered Materials 58 | -10/Materials | Evolved 1 slot: Propulsion x1 190 | -10/Materials | Identified exit to Mines 190 | -10/Materials | Discovered exit to Mines (range 13) 308 | -10/Materials | Build established: Hacker-Mutant 356 | -10/Materials | Identified exit to Materials 356 | -10/Materials | Discovered exit to Materials (range 16) 1058 | -10/Materials | Derelicts attacked the area 1203 | -10/Materials | Identified exit to Subcaves 1203 | -10/Materials | Discovered exit to Subcaves (range 7) 1322 | -10/Materials | Discovered exit to Materials (range 15) 1666 | -10/Materials | Discovered exit to Materials (range 10) 1922 | -10/Materials | Entered Subcaves 2000 | -10/Subcaves | Visited 4L-MR0's lab 2013 | -10/Subcaves | Found Powered Cannon 2016 | -10/Subcaves | Attached Powered Cannon, gained temporary slot: Power 2694 | -10/Subcaves | Learned location of Zion (-7) 2763 | -10/Subcaves | Core integrity fell below 50% 3330 | -10/Subcaves | Found SUBCON Basin 3439 | -10/Subcaves | Identified exit to Materials 3439 | -10/Subcaves | Discovered exit to Materials (range 8) 3622 | -10/Subcaves | Ambushed by angry Subdweller bent on revenge 4119 | -10/Subcaves | Discovered exit to Materials (range 12) 4162 | -10/Subcaves | Core integrity fell below 20% 4722 | -10/Subcaves | Ambushed by angry Subdweller bent on revenge 4733 | -10/Subcaves | Destroyed by 21-BIJ(R) with Subdweller Laser Last Messages --------------- 04219_ Dropped Wheel. 04219_ Acquired Spk. Treads. 04227_ Acquired Sub. Monowheel. 04604_ AI-TPI(R) destroyed. 04614_ Barrage Gun destroyed. 04617_ Acquired 42 matter. 04618_ Ion Engine destroyed. 04624_ I2-PHW(R) destroyed. 04632_ Acquired 49 matter. 04633_ BS-1WT(u) tweaks Twisted Machinery. 04648_ Acquired Sub. Monowheel. 04649_ Dropped Mak. Leg. 04718_ Destroyed Multitool. 04721_ BS-1WT(u) cries out in pain. 04721_ BS-1WT(u) destroyed. 04722_ 21-BIJ(R) angrily emerges from the Twisted Machinery. 04722_ 21-BIJ(R): "MADSUB!" 04724_ Sub. Beam Cannon shoots sparks and powers down. Map ----- +----------------------------------------------------+ | ???????????????????????????????????### "" ## | | ?????????????????????????????????????### "" ###? | | ???????????????????????????????????????##"" ###? | | ????????????????????????????????????????#"" " ## | | ????????????????????????????????????????##" # | | ?????????????????????????????????????????## | | ??????????????????????????????????????????##""" " | | ????????????????????????????????????????? "#"" " | | ????????????????????????????????????????# """" " | | ???????????????????????????????????????? """" | | ???????????????????????????????????????## #### # | | ???????????????????????????????????????? ??## # | | ???????????????????????????????????????# ??# # | | ???????????????????????????????????????# ??## | | ???????????????????????###????????????## ??## # | | ???????????????????????# "#?????????### ??# | | ???????????????????????# "#????? ### #### | | ??????????????????????## " ????? #### | | ??????????????????????# ????? #?# | | ??????????????????????? "?????? #?## | | ??????????????????????? ""??????? ##### | | ???????????????????????# R"#??????????# ## | | ???????????????????????? %#????????????# | | ???????????????????????? *#??????#####??# | | ????????????????????????# ######## #### # | | ????????????????????????#@ ## ## # | | ????????????????????????# ### # | | ???????????????????????## #???# | | ??????????????????????##" ####### ## | | ?????????????????????## "## ##[#! ### | | ?????????????????????# " =& & ! ##?# # | | ?????????????????????## "" !&[&* ##?# # | | ??????????????????????# " #### ###??# | | ??????????????????????##### ##??## #???? | | ??????????????????????????###????###??? | | ?????????????????????????????????????? ### | | ?????????????????????????????????????? #??# | | ????????????????????????????????????? #??? | | ????????????????????????????????????? ??? | | ????????????????????????????????????? ??? | | ??????????????????????????????????????? ??? | | ????????????????????????????????????????? ??? | | ?????????????????????????????????????????????????? | | ?????????????????????????????????????????????????? | | ?????????????????????????????????????????????????? | | ?????????????????????????????????????????????????? | | ?????????????????????????????????????????????????? | | ?????????????????????????????????????????????????? | | ?????????????????????????????????????????????????? | | ?????????????????????????????????????????????????? | +----------------------------------------------------+ Best States ------------- Heat Dissipation 25 Energy Generation 15 Energy Capacity 275 Matter Stores 300 Matter Capacity 300 Sight Range 16 Terrain Scan Density 10 Resistance: KI 35 Resistance: TH 35 Resistance: EX 35 Resistance: EM 35 Resistance: I 35 Resistance: S 35 Resistance: P 35 Evasion (%) 55 Recoil Reduction 1 Offensive Hacking 20 Item Schematics ----------------- None Robot Schematics ------------------ None Fabricated ------------ Nothing Repaired ---------- Nothing Studied --------- None Alien Tech Used ----------------- None Achievements -------------- None Challenges ------------ None Game ------ Seed ScrapoidFluxInterrupter Manual? 0 Play Time 00:17:49 Cumulative 80.4 hours Start 2025.11.12 @ 15:30:02 End 2025.11.12 @ 15:46:35 Sessions 1 Manual Loads 0 Difficulty Explorer Special Mode None Game No. 74 Rogue 0 Adventurer 0 Explorer 74 Win Type - Total 0 Types 0/0/0/0/0/0/0/0/0/0 Lore% 52 Gallery% 54 Achievement% 42 Wizard Run 0 Options --------- Layout 1 ASCII 0 Keyboard 0 Movement Mouse Keybinds 0 Fullscreen 1 Font 24/Smallcaps Map View 50x35 Zoom Use 0% Tactical HUD 1 Map Filters NONE Filters NONE Steam 1 RUN: 64aad762-7a1b-468e-bb79-9ed2f26cd89d